[Event "*** Titled Tuesday Blitz"]
[Site "Chess.com"]
[Date "2021.04.20"]
[Round "2"]
[White "Oleksandr_Bortnyk"]
[Black "eldur16"]
[Result "1-0"]
[WhiteElo "2937"]
[BlackElo "2594"]
[TimeControl "180+1"]
[EndTime "10:18:03 PDT"]
[Termination "Oleksandr_Bortnyk won by resignation"]

1. d4 {[%clk 0:03:00.9]} 1... Nf6 {[%clk 0:02:59.4]} 2. Nc3 {[%clk 0:03:00.5]}
2... g6 {[%clk 0:02:58.2]} 3. Bf4 {[%clk 0:02:56.9]} 3... d6 {[%clk 0:02:55.7]}
4. e3 {[%clk 0:02:56.3]} 4... Bg7 {[%clk 0:02:54.9]} 5. h4 {[%clk 0:02:56.9]}
5... h6 {[%clk 0:02:48.6]} 6. Bc4 {[%clk 0:02:56.5]} 6... Nbd7 {[%clk
0:02:47.1]} 7. Qf3 {[%clk 0:02:49.3]} 7... c6 {[%clk 0:02:42.5]} 8. Bb3 {[%clk
0:02:41.6]} 8... Nb6 {[%clk 0:02:39]} 9. e4 {[%clk 0:02:34.4]} 9... O-O {[%clk
0:02:32.5]} 10. h5 {[%clk 0:02:12.2]} 10... Bg4 {[%clk 0:02:24.7]} 11. Qe3
{[%clk 0:02:10.6]} 11... Bxh5 {[%clk 0:02:21]} 12. f3 {[%clk 0:02:04.9]} 12...
g5 {[%clk 0:02:17.7]} 13. Bxg5 {[%clk 0:02:05]} 13... hxg5 {[%clk 0:02:15.7]}
14. Qxg5 {[%clk 0:02:05.9]} 14... e6 {[%clk 0:02:01.3]} 15. e5 {[%clk
0:01:24.4]} 15... dxe5 {[%clk 0:01:57.2]} 16. dxe5 {[%clk 0:01:25.3]} 16... Bg6
{[%clk 0:01:56.9]} 17. exf6 {[%clk 0:01:20.7]} 17... Qxf6 {[%clk 0:01:55.9]} 18.
Qxf6 {[%clk 0:01:18.9]} 18... Bxf6 {[%clk 0:01:55.4]} 19. Nge2 {[%clk
0:01:19.8]} 19... Nd5 {[%clk 0:01:52.4]} 20. O-O-O {[%clk 0:01:16.9]} 20... Rfd8
{[%clk 0:01:46]} 21. Nxd5 {[%clk 0:01:14.5]} 21... cxd5 {[%clk 0:01:43.6]} 22.
c3 {[%clk 0:01:13.9]} 22... Rac8 {[%clk 0:01:40.3]} 23. Bc2 {[%clk 0:01:13.5]}
23... Bxc2 {[%clk 0:01:32.3]} 24. Kxc2 {[%clk 0:01:14.4]} 24... d4 {[%clk
0:01:32.6]} 25. Rh6 {[%clk 0:01:09.2]} 25... Bg7 {[%clk 0:01:30.5]} 26. Rh4
{[%clk 0:01:03.9]} 26... dxc3 {[%clk 0:01:22.2]} 27. Rxd8+ {[%clk 0:01:04.8]}
27... Rxd8 {[%clk 0:01:21.6]} 28. bxc3 {[%clk 0:01:04.6]} 28... Bf6 {[%clk
0:01:18.2]} 29. Ra4 {[%clk 0:00:50.2]} 29... a6 {[%clk 0:01:17.7]} 30. Rb4
{[%clk 0:00:50.7]} 30... b5 {[%clk 0:01:13.9]} 31. a4 {[%clk 0:00:51.3]} 31...
Rd5 {[%clk 0:01:10]} 32. axb5 {[%clk 0:00:51.1]} 32... axb5 {[%clk 0:01:09.3]}
33. Rf4 {[%clk 0:00:47.6]} 33... Bg7 {[%clk 0:01:04.3]} 34. Rg4 {[%clk
0:00:45.7]} 34... Kf8 {[%clk 0:01:03.4]} 35. Nc1 {[%clk 0:00:28.1]} 35... Rc5
{[%clk 0:01:01.2]} 36. Na2 {[%clk 0:00:28.3]} 36... f5 {[%clk 0:00:57.4]} 37.
Rh4 {[%clk 0:00:26.9]} 37... Kf7 {[%clk 0:00:56.6]} 38. Kb3 {[%clk 0:00:26.9]}
38... Rd5 {[%clk 0:00:52.7]} 39. g4 {[%clk 0:00:14.5]} 39... f4 {[%clk
0:00:47.9]} 40. Nb4 {[%clk 0:00:14.5]} 40... Rc5 {[%clk 0:00:44.8]} 41. Na2
{[%clk 0:00:14.5]} 41... Kg6 {[%clk 0:00:44.5]} 42. Rh1 {[%clk 0:00:14.2]} 42...
Re5 {[%clk 0:00:42.6]} 43. Rf1 {[%clk 0:00:12.8]} 43... Bf8 {[%clk 0:00:38.9]}
44. Nc1 {[%clk 0:00:09.9]} 44... Kg5 {[%clk 0:00:37.8]} 45. Kc2 {[%clk
0:00:07.7]} 45... Bg7 {[%clk 0:00:36.1]} 46. Rf2 {[%clk 0:00:02.8]} 46... Re3
{[%clk 0:00:35]} 47. Nd3 {[%clk 0:00:02.7]} 47... Kh4 {[%clk 0:00:32.2]} 48. Rf1
{[%clk 0:00:02]} 48... Kg3 {[%clk 0:00:30.6]} 49. g5 {[%clk 0:00:02.2]} 49...
Rxf3 {[%clk 0:00:28.4]} 50. Rh1 {[%clk 0:00:01.9]} 50... e5 {[%clk 0:00:21.7]}
51. Rh7 {[%clk 0:00:02.5]} 51... e4 {[%clk 0:00:21.7]} 52. Rxg7 {[%clk
0:00:03.1]} 52... Rxd3 {[%clk 0:00:20]} 53. Re7 {[%clk 0:00:03.5]} 53... e3
{[%clk 0:00:18.4]} 54. Kxd3 {[%clk 0:00:03.5]} 1-0

[Event "*** Titled Tuesday Blitz"]
[Site "Chess.com"]
[Date "2021.04.20"]
[Round "2"]
[White "chessdiamant"]
[Black "elcandado"]
[Result "1-0"]
[WhiteElo "2342"]
[BlackElo "2637"]
[TimeControl "180+1"]
[EndTime "10:18:03 PDT"]
[Termination "chessdiamant won on time"]

1. e4 {[%clk 0:03:00.2]} 1... e5 {[%clk 0:02:59.4]} 2. Nf3 {[%clk 0:02:59.8]}
2... Nc6 {[%clk 0:02:57.5]} 3. Bb5 {[%clk 0:02:51.2]} 3... a6 {[%clk 0:02:56.9]}
4. Ba4 {[%clk 0:02:47.5]} 4... Nf6 {[%clk 0:02:56.2]} 5. O-O {[%clk 0:02:46.7]}
5... Be7 {[%clk 0:02:55.9]} 6. Re1 {[%clk 0:02:32.8]} 6... b5 {[%clk 0:02:53.3]}
7. Bb3 {[%clk 0:02:30.9]} 7... d6 {[%clk 0:02:53.2]} 8. c3 {[%clk 0:02:30.4]}
8... O-O {[%clk 0:02:51.6]} 9. h3 {[%clk 0:02:29.7]} 9... Nb8 {[%clk 0:02:51.1]}
10. d4 {[%clk 0:02:29.5]} 10... Nbd7 {[%clk 0:02:50.7]} 11. Bc2 {[%clk
0:02:28.2]} 11... Bb7 {[%clk 0:02:46.8]} 12. Nbd2 {[%clk 0:02:27.3]} 12... Re8
{[%clk 0:02:46.6]} 13. Nf1 {[%clk 0:02:27]} 13... Bf8 {[%clk 0:02:46.3]} 14. Ng3
{[%clk 0:02:26.8]} 14... g6 {[%clk 0:02:46.4]} 15. a4 {[%clk 0:02:26.8]} 15...
Nb6 {[%clk 0:02:45.9]} 16. axb5 {[%clk 0:02:18]} 16... axb5 {[%clk 0:02:43.2]}
17. Rxa8 {[%clk 0:02:17.6]} 17... Qxa8 {[%clk 0:02:44]} 18. d5 {[%clk
0:02:18.2]} 18... c6 {[%clk 0:02:39.4]} 19. dxc6 {[%clk 0:02:17.1]} 19... Bxc6
{[%clk 0:02:40.3]} 20. Bg5 {[%clk 0:02:10.9]} 20... Nfd7 {[%clk 0:02:11.7]} 21.
Qc1 {[%clk 0:01:57.4]} 21... Nc5 {[%clk 0:02:04]} 22. Bh6 {[%clk 0:01:51.8]}
22... Re7 {[%clk 0:01:53.1]} 23. Qd2 {[%clk 0:01:30.4]} 23... Ra7 {[%clk
0:01:40.1]} 24. Bxf8 {[%clk 0:01:24]} 24... Qxf8 {[%clk 0:01:41]} 25. Qg5 {[%clk
0:01:12.2]} 25... Ne6 {[%clk 0:01:36.4]} 26. Qf6 {[%clk 0:01:10.3]} 26... Qg7
{[%clk 0:01:17.6]} 27. Qxg7+ {[%clk 0:01:09.2]} 27... Kxg7 {[%clk 0:01:18.5]}
28. Rd1 {[%clk 0:01:06.7]} 28... Nc8 {[%clk 0:01:10.5]} 29. Bb3 {[%clk
0:01:00.9]} 29... Nc5 {[%clk 0:00:52.3]} 30. Bd5 {[%clk 0:00:56.9]} 30... Be8
{[%clk 0:00:38.6]} 31. b4 {[%clk 0:00:46.1]} 31... Na4 {[%clk 0:00:35.9]} 32. c4
{[%clk 0:00:36.9]} 32... Nb2 {[%clk 0:00:29.6]} 33. Rc1 {[%clk 0:00:27]} 33...
bxc4 {[%clk 0:00:28.8]} 34. Rc2 {[%clk 0:00:24]} 34... Ra1+ {[%clk 0:00:22.9]}
35. Kh2 {[%clk 0:00:23.7]} 35... Rb1 {[%clk 0:00:19.8]} 36. Bxc4 {[%clk
0:00:22.6]} 36... Nb6 {[%clk 0:00:18.8]} 37. Ba2 {[%clk 0:00:21.4]} 37... Ra1
{[%clk 0:00:14.1]} 38. Rxb2 {[%clk 0:00:21.6]} 38... Bb5 {[%clk 0:00:13.5]} 39.
Bb3 {[%clk 0:00:20.1]} 39... h6 {[%clk 0:00:09.5]} 40. Ne2 {[%clk 0:00:18.4]}
40... Bxe2 {[%clk 0:00:07.6]} 41. Rxe2 {[%clk 0:00:19.3]} 41... Rb1 {[%clk
0:00:08.1]} 42. Re3 {[%clk 0:00:19]} 42... Kf6 {[%clk 0:00:07.3]} 43. b5 {[%clk
0:00:19]} 43... Ke7 {[%clk 0:00:07.1]} 44. Rc3 {[%clk 0:00:18.6]} 44... f5
{[%clk 0:00:06.5]} 45. exf5 {[%clk 0:00:18]} 45... gxf5 {[%clk 0:00:07.4]} 46.
Nd2 {[%clk 0:00:16.7]} 46... Rb2 {[%clk 0:00:06.9]} 47. Nc4 {[%clk 0:00:16.2]}
47... Nxc4 {[%clk 0:00:06.2]} 48. Bxc4 {[%clk 0:00:17]} 48... e4 {[%clk
0:00:03.3]} 49. Rb3 {[%clk 0:00:16.7]} 49... Rc2 {[%clk 0:00:02.2]} 50. b6
{[%clk 0:00:16]} 1-0

[Event "*** Titled Tuesday Blitz"]
[Site "Chess.com"]
[Date "2021.04.20"]
[Round "2"]
[White "mbachez"]
[Black "stepakyedael"]
[Result "0-1"]
[WhiteElo "2433"]
[BlackElo "2237"]
[TimeControl "180+1"]
[EndTime "10:18:03 PDT"]
[Termination "stepakyedael won on time"]

1. d4 {[%clk 0:03:00.9]} 1... Nf6 {[%clk 0:02:59.8]} 2. Nf3 {[%clk 0:02:58.5]}
2... g6 {[%clk 0:02:59.5]} 3. c4 {[%clk 0:02:57.2]} 3... Bg7 {[%clk 0:02:59.2]}
4. g3 {[%clk 0:02:57.2]} 4... O-O {[%clk 0:02:59.6]} 5. Bg2 {[%clk 0:02:57.5]}
5... d6 {[%clk 0:03:00]} 6. Nc3 {[%clk 0:02:56.2]} 6... Nc6 {[%clk 0:03:00.6]}
7. O-O {[%clk 0:02:56]} 7... Bf5 {[%clk 0:03:00.6]} 8. Ng5 {[%clk 0:02:46.1]}
8... h6 {[%clk 0:02:54.6]} 9. d5 {[%clk 0:02:37]} 9... Na5 {[%clk 0:02:51]} 10.
e4 {[%clk 0:02:28.3]} 10... Bd7 {[%clk 0:02:44.6]} 11. Nf3 {[%clk 0:02:14.8]}
11... Nxc4 {[%clk 0:02:43.3]} 12. Qb3 {[%clk 0:02:14.7]} 12... Nb6 {[%clk
0:02:38]} 13. a4 {[%clk 0:02:13.4]} 13... a5 {[%clk 0:02:36.3]} 14. Be3 {[%clk
0:02:12.5]} 14... Ra6 {[%clk 0:02:34.7]} 15. Rfc1 {[%clk 0:02:09.7]} 15... Ng4
{[%clk 0:02:32.9]} 16. Bd4 {[%clk 0:02:07.4]} 16... e5 {[%clk 0:02:33]} 17. dxe6
{[%clk 0:01:40.6]} 17... Bxe6 {[%clk 0:02:32.2]} 18. Qd1 {[%clk 0:01:39.3]}
18... Ne5 {[%clk 0:02:22.7]} 19. Nb5 {[%clk 0:01:27.7]} 19... c6 {[%clk
0:02:17.4]} 20. Na3 {[%clk 0:01:01.9]} 20... c5 {[%clk 0:02:04.1]} 21. Nxe5
{[%clk 0:00:48.7]} 21... cxd4 {[%clk 0:01:54]} 22. Nf3 {[%clk 0:00:39.2]} 22...
d3 {[%clk 0:01:38.6]} 23. Rab1 {[%clk 0:00:32.3]} 23... d5 {[%clk 0:01:32.8]}
24. e5 {[%clk 0:00:15]} 24... Nc4 {[%clk 0:01:25.4]} 25. Nb5 {[%clk 0:00:15]}
25... Nxe5 {[%clk 0:01:17.8]} 26. Nfd4 {[%clk 0:00:15.1]} 26... Bd7 {[%clk
0:01:06]} 27. f4 {[%clk 0:00:13.8]} 27... Nc4 {[%clk 0:01:02.4]} 28. Qxd3 {[%clk
0:00:13.1]} 28... Qb6 {[%clk 0:00:59.2]} 29. Kh1 {[%clk 0:00:13.3]} 29... Bc6
{[%clk 0:00:55]} 30. b3 {[%clk 0:00:13]} 30... Na3 {[%clk 0:00:47.6]} 31. Nxa3
{[%clk 0:00:11.7]} 31... Qxd4 {[%clk 0:00:45.8]} 32. Qf1 {[%clk 0:00:10.9]}
32... Qb6 {[%clk 0:00:41.9]} 33. Nb5 {[%clk 0:00:11]} 33... d4 {[%clk
0:00:39.3]} 34. Rd1 {[%clk 0:00:11.1]} 34... Bxg2+ {[%clk 0:00:38.5]} 35. Qxg2
{[%clk 0:00:11.5]} 35... Rd8 {[%clk 0:00:34.7]} 36. Rbc1 {[%clk 0:00:11.2]}
36... d3 {[%clk 0:00:30.4]} 37. Rc4 {[%clk 0:00:10.2]} 37... Raa8 {[%clk
0:00:25.6]} 38. Nc7 {[%clk 0:00:09]} 38... Rac8 {[%clk 0:00:23.2]} 39. Nd5
{[%clk 0:00:08.7]} 39... Qxb3 {[%clk 0:00:21.6]} 40. Ne7+ {[%clk 0:00:08.3]}
40... Kh7 {[%clk 0:00:21.5]} 41. Rcc1 {[%clk 0:00:06.7]} 41... Rxc1 {[%clk
0:00:19.6]} 42. Rxc1 {[%clk 0:00:05.5]} 42... d2 {[%clk 0:00:19.9]} 43. Rg1
{[%clk 0:00:03.6]} 43... d1=Q {[%clk 0:00:19.1]} 44. f5 {[%clk 0:00:04.5]} 44...
Bd4 {[%clk 0:00:15]} 45. fxg6+ {[%clk 0:00:04]} 45... fxg6 {[%clk 0:00:14.8]}
46. Rf1 {[%clk 0:00:04.5]} 46... Qxf1+ {[%clk 0:00:13.2]} 47. Qxf1 {[%clk
0:00:04.5]} 47... Qe6 {[%clk 0:00:11.4]} 0-1

[Event "*** Titled Tuesday Blitz"]
[Site "Chess.com"]
[Date "2021.04.20"]
[Round "2"]
[White "AsaHoffmann"]
[Black "iulik86"]
[Result "1/2-1/2"]
[WhiteElo "2337"]
[BlackElo "2599"]
[TimeControl "180+1"]
[EndTime "10:18:04 PDT"]
[Termination "Game drawn - insufficient material"]

1. d4 {[%clk 0:02:49.7]} 1... f5 {[%clk 0:02:59.7]} 2. Nc3 {[%clk 0:02:46.7]}
2... Nf6 {[%clk 0:02:55.8]} 3. Bg5 {[%clk 0:02:43.4]} 3... d5 {[%clk 0:02:55.4]}
4. f3 {[%clk 0:02:43.4]} 4... Nc6 {[%clk 0:02:53.3]} 5. e4 {[%clk 0:02:40.6]}
5... fxe4 {[%clk 0:02:49.5]} 6. fxe4 {[%clk 0:02:40]} 6... dxe4 {[%clk
0:02:47.5]} 7. d5 {[%clk 0:02:38.6]} 7... Ne5 {[%clk 0:02:47.4]} 8. Qd4 {[%clk
0:02:36.1]} 8... Nf7 {[%clk 0:02:47.2]} 9. Bxf6 {[%clk 0:02:30]} 9... exf6
{[%clk 0:02:46.6]} 10. O-O-O {[%clk 0:02:27.5]} 10... Be7 {[%clk 0:02:45.7]} 11.
Bb5+ {[%clk 0:02:26]} 11... Bd7 {[%clk 0:02:45.4]} 12. Qxe4 {[%clk 0:02:24.1]}
12... O-O {[%clk 0:02:39.5]} 13. Bd3 {[%clk 0:02:21.7]} 13... f5 {[%clk
0:02:38.2]} 14. Qe2 {[%clk 0:02:11.3]} 14... Bf6 {[%clk 0:02:37]} 15. Nf3 {[%clk
0:02:09.9]} 15... Re8 {[%clk 0:02:34.7]} 16. Qd2 {[%clk 0:02:07.7]} 16... Nd6
{[%clk 0:02:32.6]} 17. Kb1 {[%clk 0:02:04.1]} 17... b5 {[%clk 0:02:32.4]} 18.
Rhe1 {[%clk 0:01:57.3]} 18... b4 {[%clk 0:02:32]} 19. Ne2 {[%clk 0:01:54.7]}
19... a5 {[%clk 0:02:31.2]} 20. Nf4 {[%clk 0:01:53.7]} 20... Qb8 {[%clk
0:02:22.5]} 21. Ne6 {[%clk 0:01:52]} 21... Bxe6 {[%clk 0:02:17.3]} 22. Rxe6
{[%clk 0:01:49.3]} 22... Rf8 {[%clk 0:02:01]} 23. Rde1 {[%clk 0:01:47.4]} 23...
a4 {[%clk 0:01:59.6]} 24. Ne5 {[%clk 0:01:43.7]} 24... Bxe5 {[%clk 0:01:49]} 25.
R1xe5 {[%clk 0:01:38.2]} 25... b3 {[%clk 0:01:49.9]} 26. cxb3 {[%clk 0:01:37.2]}
26... axb3 {[%clk 0:01:50.8]} 27. a3 {[%clk 0:01:37.2]} 27... Qb6 {[%clk
0:01:47.9]} 28. Qe3 {[%clk 0:01:31.5]} 28... Qa5 {[%clk 0:01:43.6]} 29. g3
{[%clk 0:01:25.5]} 29... Qa4 {[%clk 0:01:32.2]} 30. Qc5 {[%clk 0:01:20.4]} 30...
Ne4 {[%clk 0:01:20.9]} 31. Bxe4 {[%clk 0:01:10.9]} 31... fxe4 {[%clk 0:01:21.8]}
32. Rxe4 {[%clk 0:01:10.9]} 32... Rf1+ {[%clk 0:01:17.6]} 33. Re1 {[%clk
0:01:10.2]} 33... Raf8 {[%clk 0:01:17.3]} 34. Qc3 {[%clk 0:00:58.6]} 34... Qb5
{[%clk 0:01:05.8]} 35. Re7 {[%clk 0:00:52.4]} 35... Rxe1+ {[%clk 0:01:05.3]} 36.
Rxe1 {[%clk 0:00:43]} 36... Rf1 {[%clk 0:01:04.2]} 37. Kc1 {[%clk 0:00:33.4]}
37... Rf2 {[%clk 0:00:56.1]} 38. Qd4 {[%clk 0:00:18.9]} 38... Rf1 {[%clk
0:00:44.4]} 39. Rxf1 {[%clk 0:00:18.2]} 39... Qxf1+ {[%clk 0:00:44]} 40. Kd2
{[%clk 0:00:18.2]} 40... Qb1 {[%clk 0:00:40.7]} 41. Kc3 {[%clk 0:00:17.6]} 41...
Qc2+ {[%clk 0:00:41.1]} 42. Kb4 {[%clk 0:00:17.5]} 42... Qxh2 {[%clk 0:00:42]}
43. Kxb3 {[%clk 0:00:16.5]} 43... Qxg3+ {[%clk 0:00:41.9]} 44. Kb4 {[%clk
0:00:16.5]} 44... h5 {[%clk 0:00:42.1]} 45. a4 {[%clk 0:00:15.6]} 45... h4
{[%clk 0:00:42.1]} 46. a5 {[%clk 0:00:15.8]} 46... h3 {[%clk 0:00:42.2]} 47. a6
{[%clk 0:00:15.9]} 47... Qd6+ {[%clk 0:00:41.5]} 48. Qc5 {[%clk 0:00:13.6]}
48... Qxa6 {[%clk 0:00:40.8]} 49. Qxc7 {[%clk 0:00:13.5]} 49... Qd3 {[%clk
0:00:35.8]} 50. d6 {[%clk 0:00:12.9]} 50... h2 {[%clk 0:00:34]} 51. d7 {[%clk
0:00:12.9]} 51... Qd4+ {[%clk 0:00:32.8]} 52. Kb3 {[%clk 0:00:12.4]} 52... Qd5+
{[%clk 0:00:32.4]} 53. Kb4 {[%clk 0:00:12.6]} 53... h1=Q {[%clk 0:00:31.2]} 54.
d8=Q+ {[%clk 0:00:11.9]} 54... Kh7 {[%clk 0:00:31.8]} 55. Qxd5 {[%clk
0:00:11.3]} 55... Qxd5 {[%clk 0:00:32.7]} 56. Qc4 {[%clk 0:00:11]} 56... Qd6+
{[%clk 0:00:32.7]} 57. Kc3 {[%clk 0:00:10.4]} 57... g5 {[%clk 0:00:31.4]} 58.
Qd3+ {[%clk 0:00:10.1]} 58... Qxd3+ {[%clk 0:00:30.7]} 59. Kxd3 {[%clk
0:00:10.2]} 59... Kg6 {[%clk 0:00:30.9]} 60. Ke3 {[%clk 0:00:10.2]} 60... Kf6
{[%clk 0:00:31.2]} 61. Kf3 {[%clk 0:00:10.1]} 61... Ke5 {[%clk 0:00:31.4]} 62.
Kg4 {[%clk 0:00:10.1]} 62... Kd5 {[%clk 0:00:31.8]} 63. Kxg5 {[%clk 0:00:09.9]}
63... Kc4 {[%clk 0:00:32.4]} 64. Kh6 {[%clk 0:00:09.5]} 64... Kb3 {[%clk
0:00:32.6]} 65. Kh7 {[%clk 0:00:09.2]} 65... Kxb2 {[%clk 0:00:33.2]} 1/2-1/2

[Event "*** Titled Tuesday Blitz"]
[Site "Chess.com"]
[Date "2021.04.20"]
[Round "2"]
[White "sboshaon21"]
[Black "TeukkaSalama"]
[Result "0-1"]
[WhiteElo "2080"]
[BlackElo "2393"]
[TimeControl "180+1"]
[EndTime "10:18:05 PDT"]
[Termination "TeukkaSalama won by checkmate"]

1. d4 {[%clk 0:03:00.9]} 1... d5 {[%clk 0:02:59.4]} 2. c4 {[%clk 0:02:59.8]}
2... c6 {[%clk 0:02:59.7]} 3. Nc3 {[%clk 0:02:57.8]} 3... Nf6 {[%clk 0:02:59.4]}
4. Nf3 {[%clk 0:02:56.4]} 4... a6 {[%clk 0:02:59.5]} 5. e3 {[%clk 0:02:51.3]}
5... Bf5 {[%clk 0:02:52.1]} 6. Bd3 {[%clk 0:02:41.3]} 6... Bxd3 {[%clk
0:02:50.7]} 7. Qxd3 {[%clk 0:02:42.2]} 7... e6 {[%clk 0:02:50.8]} 8. O-O {[%clk
0:02:41.1]} 8... Be7 {[%clk 0:02:49.4]} 9. e4 {[%clk 0:02:40.6]} 9... dxe4
{[%clk 0:02:44.5]} 10. Nxe4 {[%clk 0:02:41.5]} 10... Nxe4 {[%clk 0:02:42.6]} 11.
Qxe4 {[%clk 0:02:42.4]} 11... O-O {[%clk 0:02:39.7]} 12. Bf4 {[%clk 0:02:39.2]}
12... Nd7 {[%clk 0:02:39]} 13. Rad1 {[%clk 0:02:31.7]} 13... Nf6 {[%clk
0:02:35.3]} 14. Qc2 {[%clk 0:02:31.8]} 14... Qa5 {[%clk 0:02:24.6]} 15. a3
{[%clk 0:02:28.5]} 15... Rfe8 {[%clk 0:02:22.2]} 16. h3 {[%clk 0:02:21.6]} 16...
Rad8 {[%clk 0:02:18.6]} 17. Ne5 {[%clk 0:02:13]} 17... Nd7 {[%clk 0:02:10.8]}
18. Qb3 {[%clk 0:02:01.4]} 18... Nxe5 {[%clk 0:01:58]} 19. Bxe5 {[%clk
0:02:02.3]} 19... b5 {[%clk 0:01:53.7]} 20. cxb5 {[%clk 0:01:33.4]} 20... Qxb5
{[%clk 0:01:46.3]} 21. Qc2 {[%clk 0:01:28.4]} 21... Bd6 {[%clk 0:01:32.9]} 22.
Rfe1 {[%clk 0:01:08.3]} 22... Bxe5 {[%clk 0:01:19.4]} 23. dxe5 {[%clk
0:01:09.2]} 23... Rd5 {[%clk 0:01:19.4]} 24. f4 {[%clk 0:01:05.9]} 24... Red8
{[%clk 0:01:15.5]} 25. Kh2 {[%clk 0:01:01.4]} 25... g6 {[%clk 0:01:09.2]} 26.
Rxd5 {[%clk 0:00:59.3]} 26... cxd5 {[%clk 0:01:08.2]} 27. Rc1 {[%clk 0:00:57.8]}
27... Rb8 {[%clk 0:00:59]} 28. b4 {[%clk 0:00:56.2]} 28... a5 {[%clk 0:00:50.9]}
29. Qc5 {[%clk 0:00:38.7]} 29... axb4 {[%clk 0:00:41.8]} 30. Qxb5 {[%clk
0:00:35.2]} 30... Rxb5 {[%clk 0:00:42.7]} 31. axb4 {[%clk 0:00:27.1]} 31... Rxb4
{[%clk 0:00:43.6]} 32. Kg3 {[%clk 0:00:27]} 32... h6 {[%clk 0:00:39.9]} 33. Kf3
{[%clk 0:00:24.1]} 33... Kg7 {[%clk 0:00:38]} 34. Rc7 {[%clk 0:00:22.4]} 34...
Re4 {[%clk 0:00:32.8]} 35. Rd7 {[%clk 0:00:19.3]} 35... g5 {[%clk 0:00:31]} 36.
g3 {[%clk 0:00:17.5]} 36... Kg6 {[%clk 0:00:28.8]} 37. Re7 {[%clk 0:00:13.3]}
37... Rc4 {[%clk 0:00:27]} 38. Rd7 {[%clk 0:00:12.1]} 38... Rc3+ {[%clk
0:00:26]} 39. Kf2 {[%clk 0:00:12]} 39... f6 {[%clk 0:00:18.5]} 40. Re7 {[%clk
0:00:09.6]} 40... Kf5 {[%clk 0:00:18.9]} 41. Rf7 {[%clk 0:00:07.9]} 41... Ke4
{[%clk 0:00:19.1]} 42. Rxf6 {[%clk 0:00:07.2]} 42... Rc2+ {[%clk 0:00:19.5]} 43.
Kf1 {[%clk 0:00:06.3]} 43... gxf4 {[%clk 0:00:17.3]} 44. gxf4 {[%clk 0:00:05.1]}
44... Kf3 {[%clk 0:00:15.8]} 45. Ke1 {[%clk 0:00:04.7]} 45... Rc6 {[%clk
0:00:13.4]} 46. f5 {[%clk 0:00:03.7]} 46... Ke3 {[%clk 0:00:11.6]} 47. Rxe6
{[%clk 0:00:03.3]} 47... Rc1# {[%clk 0:00:11.4]} 0-1

[Event "*** Titled Tuesday Blitz"]
[Site "Chess.com"]
[Date "2021.04.20"]
[Round "2"]
[White "KetiGrant"]
[Black "chessdjw"]
[Result "0-1"]
[WhiteElo "2343"]
[BlackElo "2741"]
[TimeControl "180+1"]
[EndTime "10:18:07 PDT"]
[Termination "chessdjw won on time"]

1. e4 {[%clk 0:03:00.9]} 1... e5 {[%clk 0:02:59.2]} 2. Nf3 {[%clk 0:03:00.1]}
2... Nc6 {[%clk 0:02:59.6]} 3. Bb5 {[%clk 0:03:00.2]} 3... a6 {[%clk 0:03:00.2]}
4. Ba4 {[%clk 0:03:00.7]} 4... Nf6 {[%clk 0:03:00.7]} 5. O-O {[%clk 0:03:00.6]}
5... b5 {[%clk 0:02:59.4]} 6. Bb3 {[%clk 0:03:00.7]} 6... Bc5 {[%clk 0:03:00.1]}
7. d3 {[%clk 0:02:56.1]} 7... d6 {[%clk 0:02:58.7]} 8. c3 {[%clk 0:02:55.5]}
8... O-O {[%clk 0:02:56]} 9. Nbd2 {[%clk 0:02:54.8]} 9... h6 {[%clk 0:02:51.9]}
10. h3 {[%clk 0:02:54.4]} 10... Re8 {[%clk 0:02:50.3]} 11. Re1 {[%clk
0:02:54.8]} 11... Be6 {[%clk 0:02:50.8]} 12. Bc2 {[%clk 0:02:51.9]} 12... d5
{[%clk 0:02:50.5]} 13. exd5 {[%clk 0:02:48.7]} 13... Bxd5 {[%clk 0:02:50.3]} 14.
Ne4 {[%clk 0:02:49.6]} 14... Nxe4 {[%clk 0:02:46.7]} 15. dxe4 {[%clk 0:02:49.1]}
15... Bc4 {[%clk 0:02:46]} 16. b3 {[%clk 0:02:47.8]} 16... Be6 {[%clk
0:02:45.7]} 17. Qe2 {[%clk 0:02:47.3]} 17... Qf6 {[%clk 0:02:44.5]} 18. Be3
{[%clk 0:02:46.7]} 18... Bxe3 {[%clk 0:02:44.1]} 19. Qxe3 {[%clk 0:02:47.6]}
19... Rad8 {[%clk 0:02:40.6]} 20. Rad1 {[%clk 0:02:48.3]} 20... Rxd1 {[%clk
0:02:36.2]} 21. Rxd1 {[%clk 0:02:47.3]} 21... Rd8 {[%clk 0:02:37.1]} 22. Rxd8+
{[%clk 0:02:44.7]} 22... Qxd8 {[%clk 0:02:35.7]} 23. Qc5 {[%clk 0:02:43.5]}
23... Qd6 {[%clk 0:02:34.3]} 24. Qxd6 {[%clk 0:02:39.3]} 24... cxd6 {[%clk
0:02:35.2]} 25. Kf1 {[%clk 0:02:38.9]} 25... Kf8 {[%clk 0:02:34]} 26. Ke2 {[%clk
0:02:39.8]} 26... Ke7 {[%clk 0:02:34.4]} 27. Nd2 {[%clk 0:02:38]} 27... h5
{[%clk 0:02:29.4]} 28. Nf1 {[%clk 0:02:37.4]} 28... g6 {[%clk 0:02:26.6]} 29.
Ne3 {[%clk 0:02:37]} 29... h4 {[%clk 0:02:22.8]} 30. a4 {[%clk 0:02:32.7]} 30...
bxa4 {[%clk 0:02:21.4]} 31. bxa4 {[%clk 0:02:33.6]} 31... a5 {[%clk 0:02:21.4]}
32. Kd3 {[%clk 0:02:25.3]} 32... Nd8 {[%clk 0:02:21.1]} 33. Nd5+ {[%clk
0:02:23.8]} 33... Kd7 {[%clk 0:01:47.6]} 34. Nb6+ {[%clk 0:02:04.7]} 34... Kc6
{[%clk 0:01:44.8]} 35. Nc4 {[%clk 0:02:05.5]} 35... Nb7 {[%clk 0:01:43.9]} 36.
Nd2 {[%clk 0:01:52.9]} 36... Nc5+ {[%clk 0:01:43]} 37. Ke3 {[%clk 0:01:53.8]}
37... g5 {[%clk 0:01:27.1]} 38. Kf3 {[%clk 0:01:40.4]} 38... f6 {[%clk
0:01:26.3]} 39. Nf1 {[%clk 0:01:37.2]} 39... d5 {[%clk 0:01:22.4]} 40. Ne3
{[%clk 0:01:18.2]} 40... dxe4+ {[%clk 0:01:21.7]} 41. Bxe4+ {[%clk 0:01:17.1]}
41... Nxe4 {[%clk 0:01:22.2]} 42. Kxe4 {[%clk 0:01:17]} 42... Kc5 {[%clk
0:01:23.1]} 43. Kd3 {[%clk 0:01:01.4]} 43... Bd7 {[%clk 0:01:17]} 44. Ng4 {[%clk
0:00:57.3]} 44... e4+ {[%clk 0:01:06.1]} 45. Kd2 {[%clk 0:00:52.1]} 45... f5
{[%clk 0:01:05.5]} 46. Nh6 {[%clk 0:00:46.8]} 46... Kc4 {[%clk 0:01:03]} 47. Nf7
{[%clk 0:00:44.3]} 47... Bxa4 {[%clk 0:00:57.8]} 48. Nd6+ {[%clk 0:00:39.7]}
48... Kc5 {[%clk 0:00:48.1]} 49. Nxf5 {[%clk 0:00:40.6]} 49... Bb3 {[%clk
0:00:43.7]} 50. Nd4 {[%clk 0:00:35.6]} 50... Kc4 {[%clk 0:00:36]} 51. g3 {[%clk
0:00:18.3]} 51... g4 {[%clk 0:00:31.9]} 52. gxh4 {[%clk 0:00:07.4]} 52... gxh3
{[%clk 0:00:31.7]} 53. Ne2 {[%clk 0:00:07]} 53... h2 {[%clk 0:00:30.8]} 54. Ng3
{[%clk 0:00:06.8]} 54... a4 {[%clk 0:00:31.1]} 55. h5 {[%clk 0:00:03.7]} 55...
a3 {[%clk 0:00:28]} 56. Kc1 {[%clk 0:00:01.7]} 56... Kxc3 {[%clk 0:00:26.7]} 0-1